bitfinex/quotes_BTCUSD_20251219
["timestamp","ask_amount","ask_price","bid_price","bid_amount"]
[1766173005034,0.05124,88029.0,88013.0,0.01136195]
[1766173005244,0.0002481,88020.0,88015.0,0.01368293]
[1766173005490,0.00576,88019.0,88015.0,0.01368293]
[1766173006524,1.29295357,88025.0,88015.0,0.01368293]
[1766173006525,1.29295357,88025.0,88019.0,0.01136118]
[1766173006675,1.29295357,88025.0,88023.0,0.05680333]
[1766173006916,0.04419624,88075.0,88036.0,0.01135898]
[1766173006917,1.29295357,88040.0,88036.0,0.01135898]
[1766173007248,0.05124,88039.0,88034.0,0.01135924]
[1766173007402,0.05124,88039.0,88037.0,0.05679381]
[1766173007782,0.05124,88039.0,88034.0,0.01135924]
[1766173007783,0.05124,88039.0,88034.0,0.01]
[1766173007989,0.05124,88039.0,88034.0,0.06679597]
[1766173008205,0.05124,88039.0,88036.0,0.06815374]
[1766173008414,0.05124,88039.0,88034.0,0.01]
[1766173008622,0.05124,88039.0,88036.0,0.06815379]
[1766173008856,0.05124,88039.0,88034.0,0.02135924]
[1766173008857,0.05124,88039.0,88035.0,0.01135911]
[1766173009058,0.05124,88039.0,88032.0,0.01]
[1766173009230,0.05124,88039.0,88032.0,0.0213595]
[1766173009454,0.05124,88039.0,88035.0,0.01135911]
[1766173009656,0.05124,88039.0,88036.0,0.01135898]
[1766173010000,0.05124,88039.0,88034.0,0.06815514]
[1766173010197,0.05124,88039.0,88035.0,0.01135911]
[1766173010412,0.05124,88039.0,88036.0,0.06815392]
[1766173010616,1.29295357,88050.0,88036.0,0.01135898]
[1766173010830,1.29295357,88050.0,88035.0,0.01135911]
[1766173010831,0.05124,88049.0,88035.0,0.01135911]
[1766173011345,1.29306158,88050.0,88045.0,0.01368293]
[1766173011576,0.05124,88049.0,88045.0,0.01368293]
[1766173011746,0.001099,88045.0,88032.0,0.01]
[1766173012092,0.05124,88049.0,88032.0,0.01]
[1766173012700,0.0004031,88033.0,88032.0,0.01]
[1766173012846,0.0061231,88033.0,88032.0,0.01]
[1766173014945,0.0061231,88033.0,88032.0,0.06679752]
[1766173015545,0.04548,88049.0,88037.0,0.01135886]
[1766173015781,0.04548,88049.0,88048.0,0.01368293]
[1766173016001,0.04548,88049.0,88032.0,0.01]
[1766173016002,0.001099,88037.0,88032.0,0.01]
[1766173016213,0.04548,88049.0,88030.0,0.01]
[1766173016633,0.00572,88048.0,88032.0,0.0113595]
[1766173016912,0.00572,88048.0,88030.0,0.01]
[1766173017126,0.001099,88032.0,88030.0,0.01]
[1766173017347,0.00572,88048.0,88030.0,0.01]
[1766173017552,1.29306158,88050.0,88030.0,0.01]
[1766173017553,0.0512,88047.0,88030.0,0.01]
[1766173017954,0.0512,88046.0,88032.0,0.0113595]
[1766173018158,0.0512,88046.0,88032.0,0.06815658]
[1766173018361,0.0512,88046.0,88037.0,0.01135886]
[1766173018514,0.0512,88046.0,88034.0,0.01135924]
[1766173018716,0.0512,88046.0,88031.0,0.01135963]
[1766173018928,0.0512,88046.0,88033.0,0.01135937]
[1766173019115,0.00010801,88050.0,88030.0,0.06679841]
[1766173019116,0.00010801,88050.0,88043.0,0.01368293]
[1766173019322,0.0512,88049.0,88043.0,0.01368293]
[1766173019712,0.0512,88049.0,88043.0,0.01258393]
[1766173020318,0.0512,88049.0,88031.0,0.06679756]
[1766173020525,0.0512,88049.0,88044.0,0.01083902]
[1766173020974,0.00010801,88050.0,88049.0,0.001099]
[1766173021171,1.29295357,88070.0,88052.0,0.01135692]
[1766173021386,0.48563,88076.0,88051.0,0.01135705]
[1766173021387,0.05124,88058.0,88051.0,0.01135705]
[1766173021591,0.05124,88058.0,88049.0,0.06814383]
[1766173021793,0.05124,88058.0,88045.0,0.01135782]
[1766173022003,0.05124,88058.0,88046.0,0.06814604]
[1766173022206,0.05124,88057.0,88048.0,0.05678657]
[1766173022361,0.05124,88057.0,88052.0,0.01135692]
[1766173022561,0.05124,88057.0,88045.0,0.01135782]
[1766173022762,0.05124,88057.0,88047.0,0.01135757]
[1766173022985,0.05124,88057.0,88048.0,0.05678658]
[1766173023183,0.05124,88057.0,88048.0,0.01135744]
[1766173023387,0.05124,88057.0,88048.0,0.06814464]
[1766173023616,0.05124,88057.0,88047.0,0.01135757]
[1766173023839,0.05124,88057.0,88044.0,0.01083902]
[1766173024002,0.05124,88057.0,88044.0,0.02219697]
[1766173024178,0.05124,88057.0,88045.0,0.01135782]
[1766173024387,0.05124,88057.0,88046.0,0.06814601]
[1766173024597,0.05124,88057.0,88047.0,0.01135757]
[1766173025140,0.05124,88057.0,88050.0,0.01135718]
[1766173025554,0.0512,88056.0,88048.0,0.01135744]
[1766173025754,0.050101,88056.0,88048.0,0.01135744]
[1766173025896,0.050101,88056.0,88050.0,0.01135718]
[1766173026115,0.00572,88055.0,88052.0,0.01135692]
[1766173026314,0.00572,88055.0,88052.0,0.068141]
[1766173026515,0.00572,88055.0,88053.0,0.05678336]
[1766173026721,0.45556,88079.0,88053.0,0.05678336]
[1766173026722,0.88171739,88080.0,88056.0,0.0113564]
[1766173026914,0.88171739,88080.0,88058.0,0.01368293]
[1766173026915,1.01819739,88080.0,88058.0,0.01368293]
[1766173027147,0.0512,88079.0,88058.0,0.01368293]
[1766173027375,0.0512,88079.0,88058.0,0.02503908]
[1766173027574,0.0512,88079.0,88058.0,0.08181971]
[1766173027827,0.0512,88079.0,88059.0,0.01135602]
[1766173028025,0.0512,88079.0,88058.0,0.08181927]
[1766173028250,0.0512,88079.0,88058.0,0.01368293]
[1766173028383,0.00010799,88080.0,88079.0,0.05676722]
[1766173028598,0.00010799,88080.0,88079.0,0.01135344]
[1766173028599,0.04548,88080.0,88079.0,0.01135344]
[1766173028788,0.04548,88080.0,88078.0,0.01135357]
[1766173028789,0.88171739,88100.0,88088.0,0.01135228]
[1766173029002,0.0512,88099.0,88090.0,0.01258393]
[1766173029375,0.0512,88099.0,88075.0,0.22707715]
[1766173029376,0.0512,88099.0,88092.0,0.01368293]
[1766173029585,0.88207727,88100.0,88092.0,0.01368293]
[1766173029789,0.05124,88098.0,88092.0,0.01368293]
[1766173031435,0.05124,88098.0,88077.0,0.01]
[1766173031669,0.88171739,88090.0,88066.0,0.01368293]
[1766173031877,0.00576,88089.0,88080.0,0.01368293]
[1766173033123,0.00576,88089.0,88067.0,0.01]
[1766173033575,0.00108476,88068.0,88067.0,0.01]
[1766173033786,0.05232476,88068.0,88044.0,0.01135795]
[1766173033988,0.88171739,88060.0,88034.0,0.03992393]
[1766173034191,0.00576,88059.0,88038.0,0.01135873]
[1766173034345,0.00576,88059.0,88037.0,0.01135886]
[1766173034606,0.00576,88059.0,88031.0,0.01368293]
[1766173034773,1.05393628,88057.0,88046.0,0.00010799]
[1766173034983,1.46873739,88056.0,88046.0,0.00010799]
[1766173035140,0.88171739,88041.0,88027.0,0.01]
[1766173035358,0.88171739,88041.0,88030.0,0.01]
[1766173035359,0.05113,88040.0,88030.0,0.01]
[1766173035798,0.05113,88040.0,88029.0,0.01368293]
[1766173036082,0.05113,88040.0,88027.0,0.00010801]
[1766173036398,0.93284739,88040.0,88027.0,0.00010801]
[1766173037051,0.05113,88040.0,88027.0,0.00010801]
[1766173037743,0.93284739,88040.0,88027.0,0.00010801]
[1766173037947,0.05113,88040.0,88027.0,0.00010801]
[1766173038157,0.93284739,88040.0,88029.0,0.01368293]
[1766173038378,0.01135628,88057.0,88029.0,0.01368293]
[1766173038379,0.88171739,88060.0,88040.0,0.001099]
[1766173038550,0.18768,88059.0,88040.0,0.001099]
[1766173038749,0.88171739,88060.0,88040.0,0.001099]
[1766173038951,0.88171739,88060.0,88037.0,0.01135886]
[1766173038952,0.18768,88059.0,88036.0,0.01135898]
[1766173039156,0.00043398,88047.0,88036.0,0.01135898]
[1766173039360,0.18768,88059.0,88033.0,0.01]
[1766173039361,0.00576,88046.0,88033.0,0.01]
[1766173039564,0.00576,88046.0,88033.0,0.02135937]
[1766173039728,0.00576,88046.0,88033.0,0.01]
[1766173039935,0.00576,88046.0,88033.0,0.02135937]
[1766173040248,0.004661,88046.0,88035.0,0.01135911]
[1766173040841,0.004661,88046.0,88035.0,0.06815458]
[1766173041042,0.45556,88067.0,88036.0,0.06815372]
[1766173041247,0.45556,88067.0,88033.0,0.02135937]
[1766173041248,0.01368293,88064.0,88037.0,0.01135886]
[1766173041647,0.01368293,88064.0,88035.0,0.01135911]
[1766173041952,0.01368293,88064.0,88034.0,0.01135924]
[1766173041953,0.18764,88063.0,88038.0,0.01135873]
[1766173042173,0.18764,88063.0,88037.0,0.06815277]
[1766173042375,0.18764,88063.0,88038.0,0.01135873]
[1766173042578,0.18764,88063.0,88038.0,0.06815205]
[1766173042780,0.88171739,88060.0,88034.0,0.01135924]
[1766173043004,0.88171739,88060.0,88036.0,0.01368293]
[1766173043272,0.88171739,88060.0,88037.0,0.01135886]
[1766173043674,0.88171739,88060.0,88036.0,0.01368293]
[1766173044633,0.00024798,88041.0,88036.0,0.01368293]
[1766173044792,0.0512,88040.0,88036.0,0.01368293]
[1766173045206,0.0512,88040.0,88027.0,0.00010801]
[1766173045380,0.001099,88036.0,88031.0,0.02135963]
[1766173045621,0.0512,88040.0,88031.0,0.01]
[1766173046363,0.0512,88040.0,88033.0,0.01135937]
[1766173046566,0.0512,88040.0,88034.0,0.05679619]
[1766173046901,0.0512,88040.0,88036.0,0.01135898]
[1766173047111,0.0512,88040.0,88035.0,0.06815443]
[1766173047310,0.0512,88040.0,88032.0,0.01]
[1766173047512,0.00024798,88041.0,88040.0,0.01]
[1766173047737,0.13644,88063.0,88043.0,0.05679002]
[1766173047941,0.0512,88062.0,88044.0,0.06814763]
[1766173048169,0.0512,88062.0,88042.0,0.01]
[1766173049329,0.63962,88062.0,88040.0,0.01]
[1766173049544,0.001099,88042.0,88027.0,0.00010801]
[1766173049745,0.0512,88041.0,88027.0,0.00010801]
[1766173049993,0.00572,88040.0,88027.0,0.02146816]
[1766173050297,0.00572,88040.0,88031.0,0.01]
[1766173051265,0.00572,88040.0,88027.0,0.00010801]
[1766173051651,0.88743739,88040.0,88027.0,1e-08]
[1766173053940,0.01368293,88037.0,88027.0,1e-08]
[1766173054148,0.01368293,88037.0,88007.0,0.01]
[1766173054345,1.47774141,88030.0,88007.0,0.01010803]
[1766173054553,0.00572,88029.0,88010.0,0.02136234]
[1766173054773,0.00572,88029.0,88011.0,0.01136221]
[1766173055025,0.00572,88029.0,88014.0,0.01136182]
[1766173055330,0.00572,88029.0,88015.0,0.01136169]
[1766173055493,0.00572,88028.0,88011.0,0.06817316]
[1766173055697,0.00572,88028.0,88012.0,0.05681039]
[1766173055908,0.00572,88028.0,88011.0,0.09428]
[1766173056128,0.00572,88028.0,88011.0,0.10564221]
[1766173056328,0.00572,88028.0,88013.0,0.05680941]
[1766173056507,0.00572,88028.0,88013.0,0.06817136]
[1766173056702,0.00572,88028.0,88012.0,0.10564208]
[1766173056928,0.00572,88028.0,88012.0,0.09428]
[1766173057138,0.00572,88028.0,88014.0,0.01136182]
[1766173057307,0.00572,88028.0,88013.0,0.09428]
[1766173058454,0.13648,88034.0,88028.0,0.000108]
[1766173058656,0.01384,88033.0,88028.0,0.000108]
[1766173058853,0.01384,88033.0,88021.0,0.01136092]
[1766173059054,0.01384,88033.0,88020.0,0.06816602]
[1766173059301,0.01384,88033.0,88018.0,0.06816764]
[1766173059640,0.01384,88033.0,88018.0,0.05680652]
[1766173059796,0.01384,88033.0,88023.0,0.01136066]
[1766173059992,0.01384,88033.0,88023.0,0.05680327]
[1766173060203,0.01384,88033.0,88021.0,0.01136092]
[1766173060412,0.01384,88033.0,88024.0,0.01136053]
[1766173060574,0.00024798,88049.0,88030.0,0.01135976]
[1766173060947,0.00024798,88049.0,88034.0,0.01135924]
[1766173060948,0.13648,88046.0,88034.0,0.01135924]
[1766173061101,0.13648,88046.0,88033.0,0.01135937]
[1766173061269,0.13648,88046.0,88029.0,0.01368293]
[1766173061468,0.13648,88046.0,88037.0,0.05679381]
[1766173061691,0.13648,88046.0,88043.0,0.01135808]
[1766173062395,0.13648,88046.0,88042.0,0.01135821]
[1766173062583,0.13648,88046.0,88043.0,0.01135808]
[1766173062782,0.04614799,88048.0,88045.0,0.01135782]
[1766173063031,0.00024798,88049.0,88046.0,0.07814618]
[1766173063032,0.0462,88047.0,88046.0,0.07814618]
[1766173063191,1e-08,88049.0,88048.0,0.0567872]
[1766173063420,0.05120001,88049.0,88048.0,0.0567872]
[1766173063996,0.03610001,88049.0,88048.0,0.0567872]
[1766173064131,0.00590001,88049.0,88048.0,0.0567872]
[1766173064340,0.00072,88049.0,88046.0,0.01]
[1766173064515,0.00572,88048.0,88046.0,0.01]
[1766173064715,0.00134001,88048.0,88046.0,0.01]
[1766173065093,0.04288,88053.0,88050.0,0.0567855]
[1766173065241,0.00572,88052.0,88051.0,0.01]
[1766173065466,0.00010799,88053.0,88052.0,0.06678462]
[1766173065647,0.04528799,88060.0,88057.0,0.01135628]
[1766173066070,0.04548,88063.0,88060.0,0.01135589]
[1766173066252,0.04548,88063.0,88056.0,0.0113564]
[1766173066253,0.001099,88060.0,88052.0,0.01]
[1766173066455,0.001099,88060.0,88055.0,0.01135653]
[1766173066687,0.00572,88062.0,88059.0,0.01135602]
[1766173066884,0.00572,88062.0,88059.0,0.06813595]
[1766173067085,0.00572,88062.0,88060.0,0.05677916]
[1766173067283,0.00572,88062.0,88058.0,0.06813638]
[1766173067548,0.00572,88062.0,88058.0,0.01135615]
[1766173067852,0.00572,88062.0,88059.0,0.01135602]
[1766173068002,0.00572,88062.0,88054.0,0.01135666]
[1766173068199,0.00572,88062.0,88049.0,0.05128124]
[1766173068200,0.00572,88062.0,88053.0,0.01135679]
[1766173068416,0.00572,88062.0,88054.0,0.01]
[1766173068617,0.00572,88062.0,88056.0,0.01]
[1766173068799,0.00572,88062.0,88056.0,0.0213564]
[1766173068999,0.00572,88062.0,88056.0,0.01]
[1766173069434,0.00572,88062.0,88057.0,0.01]
[1766173069883,0.001099,88057.0,88056.0,0.01]
[1766173070083,0.00572,88062.0,88056.0,0.01]
[1766173070642,0.00572,88062.0,88043.0,0.01]
[1766173070996,0.001099,88056.0,88043.0,0.01]
[1766173071205,0.001099,88056.0,88034.0,0.22718375]
[1766173071206,0.00572,88055.0,88034.0,0.03992393]
[1766173071350,0.88237141,88044.0,88033.0,0.01]
[1766173071557,0.0512,88043.0,88033.0,0.01]
[1766173071781,0.0512,88043.0,88033.0,0.02135937]
[1766173071958,0.0512,88043.0,88033.0,0.01]
[1766173072360,0.0512,88043.0,88025.0,0.03992393]
[1766173072700,0.0512,88043.0,88028.0,0.01136002]
[1766173072916,0.0512,88043.0,88024.0,0.01136053]
[1766173073137,0.0512,88043.0,88025.0,0.0113604]
[1766173073337,0.88237141,88040.0,88026.0,0.05680076]
[1766173073549,0.0512,88043.0,88025.0,0.06816243]
[1766173073696,0.0512,88043.0,88024.0,0.01136053]
[1766173073900,0.88237141,88040.0,88021.0,0.03992393]
[1766173074100,0.0512,88043.0,88013.0,0.01136195]
[1766173074101,0.88237141,88031.0,88014.0,0.03992393]
[1766173074333,0.00572,88030.0,88013.0,0.01]
[1766173074544,0.00572,88030.0,88015.0,0.01]
[1766173074889,0.00572,88030.0,88015.0,0.02136169]
[1766173075087,0.00572,88030.0,88015.0,0.01]
[1766173075329,0.00572,88030.0,88015.0,0.01010799]
[1766173075708,0.00572,88030.0,88015.0,0.00010799]
[1766173078969,0.88809141,88030.0,88015.0,0.00010799]
[1766173079531,0.45305,88020.0,88005.0,0.00827944]
[1766173079745,0.01136027,88026.0,88005.0,0.00010789]
[1766173079746,0.88237141,88011.0,88005.0,0.00010789]
[1766173079966,0.00572,88010.0,88005.0,0.00010789]
[1766173082420,0.00572,88010.0,87992.0,0.01]
[1766173082626,0.00572,88010.0,87992.0,0.01010803]
[1766173083056,0.60109,88010.0,87992.0,0.00010803]
[1766173083227,0.45305,88009.0,87992.0,0.00010803]
[1766173083458,0.59537,88008.0,87992.0,0.00010803]
[1766173083836,0.00572,88010.0,87992.0,0.00020803]
[1766173084077,0.59537,88007.0,87992.0,0.00010803]
[1766173086003,0.00572,88010.0,87994.0,0.01]
[1766173086226,0.00572,88010.0,87993.0,0.0001]
[1766173088879,0.00572,88010.0,87995.0,0.0001]
[1766173089680,0.00551,88010.0,87996.0,0.00011]
[1766173089888,0.22717753,88037.0,87992.0,0.05693123]
[1766173089889,0.589,88033.0,88010.0,0.001099]
[1766173090102,0.589,88033.0,88003.0,0.01368293]
[1766173090103,0.0512,88032.0,88003.0,0.02504617]
[1766173090300,0.0512,88032.0,88003.0,0.01368293]
[1766173090447,0.0512,88032.0,88003.0,0.02504617]
[1766173090648,0.6402,88032.0,88004.0,0.01136311]
[1766173090851,0.6402,88032.0,88003.0,0.01368293]
[1766173090852,0.03032428,88031.0,88003.0,0.01368293]
[1766173091057,1.06492,88030.0,88004.0,0.01136311]
[1766173091249,1.06492,88030.0,88003.0,0.01368293]
[1766173091457,1.06492,88030.0,88003.0,0.02504617]
[1766173091657,1.06492,88030.0,88003.0,0.01368293]
[1766173091903,1.08660384,88030.0,88003.0,0.01368293]
[1766173093147,1.08660384,88030.0,88004.0,0.01]
[1766173094861,1.08660384,88030.0,88004.0,0.0781787]
[1766173095031,0.47592,88030.0,88007.0,0.01]
[1766173095452,1.06492,88030.0,88007.0,0.01]
[1766173095799,1.06492,88030.0,88009.0,0.01]
[1766173096023,0.111612,88029.0,88007.0,0.01]
[1766173096426,0.47592,88030.0,88007.0,0.01]
[1766173096682,0.47592,88025.0,88008.0,0.01]
[1766173096893,1.29494673,88030.0,88008.0,0.01]
[1766173096894,0.00572,88024.0,88008.0,0.01]
[1766173097044,0.00572,88023.0,88008.0,0.01]
[1766173097367,0.0512,88022.0,88008.0,0.01]
[1766173097507,0.00572,88021.0,88008.0,0.01]
[1766173097709,0.00572,88021.0,88002.0,0.06681689]
[1766173097950,0.00572,88021.0,88002.0,0.01]
[1766173099194,0.00572,88021.0,88003.0,0.01136324]
[1766173099575,0.00572,88021.0,88002.0,0.02136337]
[1766173099873,0.00572,88021.0,88001.0,0.01]
[1766173100027,0.00572,88021.0,88005.0,0.01]
[1766173100224,0.00572,88021.0,88010.0,0.02136234]
[1766173100470,0.004621,88021.0,88010.0,0.02136234]
[1766173100643,0.01368293,88045.0,88016.0,0.01]
[1766173100845,0.0512,88044.0,88016.0,0.01]
[1766173101049,0.0512,88044.0,88021.0,0.01136092]
[1766173101264,0.0512,88044.0,88020.0,0.02136105]
[1766173101464,0.0512,88044.0,88020.0,0.01]
[1766173101894,0.61162,88061.0,88035.0,0.01135911]
[1766173102095,0.04548,88056.0,88035.0,0.01135911]
[1766173102301,0.0512,88056.0,88036.0,0.01]
[1766173102659,0.0512,88056.0,88035.0,0.01]
[1766173103063,0.0512,88056.0,88035.0,0.02135911]
[1766173103258,0.0512,88056.0,88035.0,0.01]
[1766173103662,0.0512,88056.0,88032.0,0.01]
[1766173103663,0.11751759,88056.0,88032.0,0.01]
[1766173103820,0.52858,88056.0,88032.0,0.06679751]
[1766173104003,0.52858,88056.0,88033.0,0.01]
[1766173104624,0.62530293,88055.0,88033.0,0.01]
[1766173104834,0.61162,88047.0,88033.0,0.008901]
[1766173105040,0.47738,88045.0,88017.0,0.01136144]
[1766173105242,0.47738,88045.0,88016.0,0.01136157]
[1766173105443,0.47738,88045.0,88017.0,0.01136144]
[1766173105770,0.47738,88045.0,88016.0,0.01136157]
[1766173105988,0.47738,88045.0,88018.0,0.01136131]
[1766173106411,0.04548,88044.0,88033.0,0.01135937]
[1766173106627,0.04548,88044.0,88014.0,0.01368293]
[1766173106628,7.81444246,88000.0,87995.0,0.10028393]
[1766173106844,5.09694099,88000.0,87997.0,0.06818286]
[1766173107051,5.09694099,88000.0,87997.0,0.01]
[1766173107052,0.00572,87999.0,87997.0,0.01]
[1766173107326,0.00572,87999.0,87995.0,0.01]
[1766173107529,0.00572,87999.0,87994.0,0.01368293]
[1766173107530,0.00572,87998.0,87994.0,0.01368293]
[1766173107960,0.00572,87997.0,87995.0,0.01]
[1766173108174,0.00064,87996.0,87995.0,0.01]
[1766173108395,0.00072,87996.0,87995.0,0.01]
[1766173109085,4.76006081,88000.0,87994.0,0.00010803]
[1766173109269,0.00572,87996.0,87994.0,0.00010803]
[1766173109670,1e-08,87995.0,87994.0,0.00010803]
[1766173110865,0.00572,87995.0,87994.0,0.00010803]
[1766173111864,0.00572,87995.0,87984.0,0.02833969]
[1766173111995,0.04548,87994.0,87984.0,0.00036041]
[1766173112453,0.04548,87994.0,87985.0,0.01368293]
[1766173112832,0.0512,87993.0,87985.0,0.01368293]
[1766173113055,0.051092,87993.0,87985.0,0.01368293]
[1766173113814,0.051092,87993.0,87986.0,0.01]
[1766173114067,26.86717612,88000.0,87986.0,0.01]
[1766173114375,26.86717612,88000.0,87999.0,0.02368293]
[1766173114583,24.81126081,88000.0,87999.0,0.01]
[1766173116088,24.81016181,88000.0,87999.0,0.01]
[1766173117314,2.10711531,87995.0,87984.0,0.00036041]
[1766173117519,0.00572,87994.0,87984.0,0.00036041]
[1766173119880,0.00572,87994.0,87985.0,0.01]
[1766173120333,2.10711531,87995.0,87985.0,0.01]
[1766173120480,0.00572,87993.0,87985.0,0.01]
[1766173123002,0.00432,87993.0,87985.0,0.01]
[1766173123836,0.00386987,87993.0,87985.0,0.01]
[1766173125551,0.00386987,87993.0,87985.0,0.008901]
[1766173125945,0.00386987,87993.0,87984.0,0.00036041]
[1766173126370,0.00199998,87990.0,87984.0,0.00036041]
[1766173126554,0.00386987,87993.0,87984.0,0.00036041]
[1766173126755,0.00199998,87990.0,87984.0,0.00036041]
[1766173129424,0.00386987,87993.0,87985.0,0.01368293]
[1766173129814,0.00299997,87990.0,87984.0,0.00036041]
[1766173130525,0.03548,87994.0,87990.0,0.001099]
[1766173130826,0.00072,87993.0,87985.0,0.01368293]
[1766173131003,0.00358987,87993.0,87985.0,0.01368293]
[1766173131409,0.00249087,87993.0,87985.0,0.01368293]
[1766173134687,0.00249087,87993.0,87985.0,0.0250485]
[1766173134922,24.75156181,88000.0,87994.0,0.02136441]
[1766173135132,24.71656181,88000.0,87999.0,0.02368293]
[1766173135333,24.71528181,88000.0,87999.0,0.02368293]
[1766173138960,24.60033355,88000.0,87999.0,0.02368293]
[1766173139160,24.31580834,88000.0,87999.0,0.02368293]
[1766173139397,24.08818818,88000.0,87999.0,0.02368293]
[1766173139695,23.29151027,88000.0,87999.0,0.02368293]
[1766173139839,23.06389011,88000.0,87999.0,0.02368293]
[1766173140056,22.89317499,88000.0,87999.0,0.02368293]
[1766173140258,22.72245887,88000.0,87999.0,0.02258393]
[1766173140458,22.55060444,88000.0,87999.0,0.02258393]
[1766173140663,22.49369901,88000.0,87999.0,0.02258393]
[1766173140918,22.49369901,88000.0,87986.0,0.01]
[1766173140919,22.30039749,88000.0,87986.0,0.01]
[1766173141124,22.24349194,88000.0,87999.0,0.01368293]
[1766173145098,22.24349194,88000.0,87988.0,0.01136518]
[1766173145099,22.24549192,88000.0,87986.0,0.01]
[1766173145246,2.10865508,87996.0,87986.0,0.01]
[1766173145448,0.00299997,87990.0,87984.0,0.00036041]
[1766173145657,0.0512,87989.0,87984.0,0.00036041]
[1766173147263,1.09954,87989.0,87984.0,4.1e-07]
[1766173149341,0.0512,87989.0,87984.0,4.1e-07]
[1766173150360,22.23841193,88000.0,87989.0,0.001099]
[1766173150491,0.0512,87999.0,87989.0,0.001099]
[1766173150692,0.0512,87999.0,87988.0,0.01368293]
[1766173155031,0.0512,87999.0,87989.0,0.01]
[1766173155777,21.89571878,88000.0,87998.0,0.05681926]
[1766173155976,0.00572,87998.0,87997.0,0.01]
[1766173156974,21.85567877,88000.0,87998.0,0.01]
[1766173157295,21.23091373,88000.0,87998.0,0.01]
[1766173157498,20.43889503,88000.0,87998.0,0.01]
[1766173157707,18.84500327,88000.0,87998.0,0.01]
[1766173157868,17.53316979,88000.0,87995.0,0.01]
[1766173158060,16.79341265,88000.0,87995.0,0.01]
[1766173158404,15.08625182,88000.0,87995.0,0.01]
[1766173158559,14.91553866,88000.0,87995.0,0.01]
[1766173158759,14.7448239,88000.0,87995.0,0.01]
[1766173158945,14.51720562,88000.0,87989.0,0.01]
[1766173159151,14.40339569,88000.0,87989.0,0.01]
[1766173159354,14.23267961,88000.0,87989.0,0.01]
[1766173159551,14.17577425,88000.0,87989.0,0.01]
[1766173159787,14.06196353,88000.0,87989.0,0.01]
[1766173163126,13.93815222,88000.0,87989.0,0.01]
[1766173163339,13.82434169,88000.0,87989.0,0.01]
[1766173163969,13.82434169,88000.0,87984.0,0.01136611]
[1766173163970,13.82434169,88000.0,87999.0,0.02368293]
[1766173164170,13.82434169,88000.0,87999.0,0.02258393]
[1766173167413,12.86837971,88000.0,87999.0,0.02258393]
[1766173167589,12.40617595,88000.0,87999.0,0.02258393]
[1766173167814,12.15682875,88000.0,87999.0,0.02258393]
[1766173168024,11.91776599,88000.0,87999.0,0.02258393]
[1766173168230,11.91776599,88000.0,87999.0,0.07940275]
[1766173168231,6.75007504,88000.0,87999.0,0.07940275]
[1766173168464,5.97360772,88000.0,87999.0,0.14942114]
[1766173168677,5.97360772,88000.0,87999.0,0.18354568]
[1766173168678,4.72246445,88000.0,87999.0,0.18354568]
[1766173168885,4.13687564,88000.0,87999.0,0.18354568]
[1766173169081,3.55847224,88000.0,87999.0,0.18354568]
[1766173169286,3.41052551,88000.0,87999.0,0.18354568]
[1766173169485,2.82684168,88000.0,87999.0,0.18354568]
[1766173169807,1.99783164,88000.0,87999.0,0.18354568]
[1766173170068,1.11984781,88000.0,87999.0,0.26965255]
[1766173170343,0.58416989,88000.0,87999.0,0.18926568]
[1766173170545,0.31098014,88000.0,87999.0,0.18926568]
[1766173170843,0.00572,88014.0,88003.0,0.04136324]
[1766173171138,0.00572,88014.0,88013.0,0.04368293]
[1766173171922,0.04548,88024.0,88014.0,0.03]
[1766173171923,0.00572,88015.0,88014.0,0.03]
[1766173172341,0.00607986,88015.0,88014.0,0.03]
[1766173172538,0.04548,88024.0,88014.0,0.03]
[1766173172806,0.00572,88023.0,88014.0,0.03]
[1766173173561,0.00572,88023.0,87999.0,0.04670847]
[1766173173759,0.00572,88023.0,88013.0,0.01368293]
[1766173175828,6.54e-05,88024.0,88014.0,0.01]
[1766173176003,0.00572,88023.0,88014.0,0.01]
[1766173177178,0.00572,88023.0,88001.0,0.01]
[1766173178197,0.00572,88023.0,88014.0,0.01]
[1766173180100,0.0512,88022.0,88014.0,0.01]
[1766173184001,0.00572,88021.0,88016.0,0.01]
[1766173184227,6.54e-05,88024.0,88016.0,0.01]
[1766173191694,6.54e-05,88024.0,88013.0,0.01368293]
[1766173191695,0.001099,88016.0,88013.0,0.01368293]
[1766173191909,6.54e-05,88024.0,88013.0,0.01368293]
[1766173191910,6.54e-05,88024.0,88014.0,0.01]
[1766173192134,0.00572,88023.0,88017.0,0.00572]
[1766173192585,0.00572,88023.0,88014.0,0.01]
[1766173194959,0.00199998,88020.0,87999.0,0.01258393]
[1766173195314,1.35272258,88010.0,87994.0,0.01]
[1766173195460,0.00572,88009.0,87994.0,0.01]
[1766173196128,0.00572,88009.0,87996.0,0.01]
[1766173197011,0.00263997,88010.0,87996.0,0.01]
[1766173197155,0.0512,88008.0,87996.0,0.01]
[1766173197505,0.050101,88008.0,87996.0,0.01]
[1766173198289,0.050101,88008.0,87996.0,0.008901]
[1766173200772,0.00263997,88010.0,87996.0,0.008901]
[1766173200969,1.35097321,88020.0,87996.0,0.008901]
[1766173200970,0.04548,88019.0,88010.0,0.001099]
[1766173201122,0.00572,88018.0,88009.0,0.01368293]
[1766173201320,0.00572,88018.0,88010.0,0.01]
[1766173201521,0.00063999,88020.0,88010.0,0.01]
[1766173201754,0.0512,88019.0,87995.0,0.01368293]
[1766173201966,1.35361318,88010.0,87996.0,0.01]
[1766173202374,0.00263997,88010.0,87996.0,0.01]
[1766173202931,0.00572,88009.0,87996.0,0.01]
[1766173204075,0.4682,88025.0,87996.0,0.01]
[1766173204076,0.00063999,88030.0,88001.0,0.07818077]
[1766173204270,0.00063999,88030.0,88022.0,0.01368293]
[1766173204271,0.00572,88023.0,88022.0,0.01368293]
[1766173205125,0.00572,88023.0,88022.0,0.02368293]
[1766173205581,0.00572,88023.0,88022.0,0.008901]
[1766173205991,0.00572,88023.0,88022.0,0.00718043]
[1766173206195,0.00572,88023.0,87995.0,0.01368293]
[1766173206196,0.00263997,88020.0,87995.0,0.01368293]